lending/lending_fUSD_20240111
["ID","MTS","AMOUNT","RATE_DAILY","PERIOD"]
[311240774,1704990646505,-771.8832493,0.00038,2]
[311240777,1704990646516,-771.8832493,0.00038,2]
[311240779,1704990646526,-771.8832493,0.00038,2]
[311240781,1704990646536,-771.8832493,0.00038,2]
[311240783,1704990646546,-771.8832493,0.00038,2]
[311240785,1704990646555,-771.8832493,0.00038,2]
[311240787,1704990646566,-771.8832493,0.00038,2]
[311240789,1704990646575,-771.8832493,0.00038,2]
[311240791,1704990646588,-771.8832493,0.00038,2]
[311240793,1704990646597,-771.8832493,0.00038,2]
[311240795,1704990646607,-771.8832493,0.00038,2]
[311240797,1704990646616,-771.8832493,0.00038,2]
[311240799,1704990646625,-771.8832493,0.00038,2]
[311240802,1704990646635,-771.8832493,0.00038,2]
[311240805,1704990646645,-771.8832493,0.00038,2]
[311240808,1704990646654,-771.8832493,0.00038,2]
[311240811,1704990646664,-771.8832493,0.00038,2]
[311240814,1704990646674,-771.8832493,0.00038,2]
[311240817,1704990646683,-771.8832493,0.00038,2]
[311240820,1704990646693,-771.8832493,0.00038,2]
[311240823,1704990646702,-771.8832493,0.00038,2]
[311240827,1704990646712,-771.8832493,0.00038,2]
[311240830,1704990646726,-231.45648069,0.00038,2]
[311240833,1704990646736,-231.45648069,0.00038,2]
[311240836,1704990646745,-231.45648069,0.00038,2]
[311240839,1704990646755,-231.45648069,0.00038,2]
[311240842,1704990646765,-231.45648069,0.00038,2]
[311240844,1704990646774,-231.45648069,0.00038,2]
[311240846,1704990646785,-231.45648069,0.00038,2]
[311240848,1704990646796,-231.45648069,0.00038,2]
[311240850,1704990646807,-231.45648069,0.00038,2]
[311240852,1704990646818,-231.45648069,0.00038,2]
[311240854,1704990646829,-231.45648069,0.00038,2]
[311240856,1704990646845,-231.45648069,0.00038,2]
[311240858,1704990646856,-231.45648069,0.00038,2]
[311240860,1704990646866,-231.45648069,0.00038,2]
[311240862,1704990646877,-231.45648069,0.00038,2]
[311240864,1704990646887,-231.45648069,0.00038,2]
[311240866,1704990646898,-231.45648069,0.00038,2]
[311240868,1704990646907,-231.45648069,0.00038,2]
[311240870,1704990646918,-231.45648069,0.00038,2]
[311240872,1704990646928,-231.45648069,0.00038,2]
[311240874,1704990646938,-231.45648069,0.00038,2]
[311240876,1704990646947,-231.45648069,0.00038,2]
[311240878,1704990646957,-231.45648069,0.00038,2]
[311240880,1704990646966,-231.45648069,0.00038,2]
[311240882,1704990646976,-231.45648069,0.00038,2]
[311240884,1704990646986,-231.45648069,0.00038,2]
[311240886,1704990646995,-231.45648069,0.00038,2]
[311240888,1704990647006,-231.45648069,0.00038,2]
[311240890,1704990647016,-231.45648069,0.00038,2]
[311240892,1704990647026,-231.45648069,0.00038,2]
[311240894,1704990647036,-159.93867503,0.00038104,7]
[311240896,1704990647046,-159.93867503,0.00038242,7]
[311240898,1704990647056,-242.09863262,0.00038275,7]
[311240900,1704990647066,-242.09863262,0.00038285,7]
[311240902,1704990647075,-158.65407432,0.00038326,7]
[311240904,1704990647089,-22735.9795329,0.0003833,10]
[311240906,1704990647098,-1023.52660709,0.00038344,8]
[311240908,1704990647108,-3678.92,0.00038352,2]
[311240910,1704990647118,-1404.11182942,0.00038356,30]
[311240913,1704990647127,-666.0,0.00038356,2]
[311240915,1704990647137,-500.0,0.00038356,2]
[311240917,1704990647146,-153.84,0.00038356,2]
[311240919,1704990647155,-200.0,0.00038356,2]
[311240921,1704990647165,-3868.0,0.00038356,10]
[311240923,1704990647174,-21927.89,0.00038356,2]
[311240925,1704990647185,-242.09863262,0.00038392,7]
[311240927,1704990647195,-8000.0,0.000384,2]
[311240929,1704990647205,-1050.21625214,0.00038423,2]
[311240931,1704990647215,-1347.909711,0.00038438,2]
[311240933,1704990647225,-242.09863262,0.00038499,7]
[311240935,1704990647235,-491.54547707,0.000385,4]
[311240937,1704990647245,-3299.94,0.000385,7]
[311240939,1704990647255,-153.39321972,0.00038552,7]
[311240942,1704990647265,-153.0,0.000386,7]
[311240944,1704990647275,-153.0,0.000386,7]
[311240946,1704990647284,-6978.99,0.000386,25]
[311240948,1704990647294,-280.20148086,0.00038608,4]
[311240950,1704990647304,-38063.03989806,0.0003861,2]
[311240952,1704990647313,-1050.21625214,0.00038645,2]
[311240954,1704990647323,-1347.909711,0.00038647,2]
[311240956,1704990647332,-182.33,0.00038651,60]
[311240958,1704990647348,-200.0,0.00038668,20]
[311240960,1704990647357,-800.0,0.00038668,10]
[311240962,1704990647367,-444.54148582,0.00038767,2]
[311240964,1704990647376,-975.0,0.000388,16]
[311240966,1704990647386,-184.87968352,0.000388,24]
[311240968,1704990647397,-2000.0,0.000389,4]
[311240970,1704990647410,-3299.94,0.000389,7]
[311240972,1704990647421,-20000.0,0.000389,2]
[311240974,1704990647432,-489.697059,0.00038904,14]
[311240976,1704990647442,-3496.562782,0.00038948,2]
[311240978,1704990647452,-242.09863262,0.00038959,7]
[311240980,1704990647463,-281.73212903,0.0003898,2]
[311240982,1704990647473,-200.0,0.00038987,5]
[311240985,1704990647483,-2196.40959209,0.00038997,2]
[311240987,1704990647493,-155.0,0.00038998,4]
[311240989,1704990647504,-547.87612585,0.00038998,4]
[311240991,1704990647514,-155.0,0.00038998,4]
[311240993,1704990647525,-188.5177,0.00038998,4]
[311240995,1704990647535,-914.67237614,0.00038998,4]
[311240997,1704990647546,-240.81227413,0.00038999,4]
[311240999,1704990647556,-246.33521087,0.00038999,4]
[311241001,1704990647566,-3371.8703433,0.00038999,4]
[311241002,1704990647576,-273.6733707,0.00038999,4]
[311241003,1704990647591,-198.5410396,0.00038999,4]
[311241004,1704990647600,-150.0,0.00038999,2]
[311241005,1704990647610,-150.0,0.00038999,2]
[311241006,1704990647620,-100000.0,0.00039,9]
[311241007,1704990647630,-1427.43973993,0.00039,2]
[311241008,1704990647641,-134098.3258,0.00039,2]
[311241010,1704990647651,-282.68132749,0.00039,4]
[311241012,1704990647661,-17720.53,0.00039,30]
[311241014,1704990647671,-167782.28883337,0.00039,2]
[311241016,1704990647681,-370.16516551,0.00039,120]
[311241018,1704990647690,-1000.0,0.00039,9]
[311241020,1704990647700,-1000.0,0.00039,9]
[311241022,1704990647709,-682.17097299,0.00039,4]
[311241024,1704990647719,-158367.04220359,0.00039,4]
[311241026,1704990647729,-2000.0,0.00039,2]
[311241028,1704990647739,-2310.21,0.00039,7]
[311241030,1704990647750,-3412.80530229,0.00039,3]
[311241032,1704990647760,-350.63736965,0.00039,4]
[311241034,1704990647770,-1038.8432883,0.00039,14]
[311241036,1704990647780,-3410.01,0.00039,7]
[311241038,1704990647790,-8576.30076329,0.00039,120]
[311241040,1704990647800,-1000.0,0.00039,60]
[311241042,1704990647810,-484.58,0.00039,3]
[311241044,1704990647819,-484.58,0.00039,3]
[311241046,1704990647829,-484.58,0.00039,3]
[311241048,1704990647845,-484.58,0.00039,3]
[311241050,1704990647854,-484.58,0.00039,3]
[311241052,1704990647864,-484.58,0.00039,3]
[311241054,1704990647874,-484.58,0.00039,3]
[311241056,1704990647885,-484.58,0.00039,3]
[311241059,1704990647895,-484.58,0.00039,3]
[311241060,1704990647906,-484.58,0.00039,3]
[311241063,1704990647916,-484.58,0.00039,3]
[311241065,1704990647926,-484.58,0.00039,3]
[311241066,1704990647936,-484.58,0.00039,3]
[311241069,1704990647946,-484.58,0.00039,3]
[311241071,1704990647956,-484.58,0.00039,3]
[311241073,1704990647967,-484.58,0.00039,3]
[311241075,1704990647977,-484.58,0.00039,3]
[311241077,1704990647987,-484.58,0.00039,3]
[311241079,1704990647999,-484.58,0.00039,3]
[311241081,1704990648012,-484.58,0.00039,3]
[311241083,1704990648024,-700.0,0.00039,3]
[311241085,1704990648037,-5000.0,0.00039,25]
[311241088,1704990648049,-91373.33014855,0.00039,2]
[311241090,1704990648060,-242.09863262,0.00039004,7]
[311241091,1704990648072,-10308.07817177,0.00039006,12]
[311241093,1704990648092,-1914.34594677,0.00039059,30]
[311241096,1704990648104,-2156.55982993,0.00039107,2]
[311241098,1704990648116,-881.31,0.00039161,2]
[311241100,1704990648128,-1050.21625214,0.00039243,2]
[311241102,1704990648141,-247.6,0.0003926,2]
[311241104,1704990648153,-153.84,0.00039269,2]
[311241106,1704990648166,-242.09863262,0.0003927,7]
[311241108,1704990648178,-3237.8087219,0.000394,4]
[311241110,1704990648189,-153.0,0.000394,7]
[311241112,1704990648201,-3299.94,0.000394,7]
[311241114,1704990648214,-1347.909711,0.00039402,2]
[311241116,1704990648225,-3229.97399746,0.000395,2]
[311241118,1704990648238,-4548.95757275,0.000395,4]
[311241121,1704990648250,-26598.64695972,0.000395,30]
[311241123,1704990648263,-204.0,0.00039549,28]
[311241125,1704990648274,-1437.83782363,0.00039554,7]
[311241127,1704990648286,-5548.62582384,0.00039554,7]
[311241129,1704990648296,-203.90344807,0.00039554,3]
[311241131,1704990648306,-567.95349845,0.00039554,7]
[311241133,1704990648316,-14225.60216816,0.00039554,8]
[311241135,1704990648330,-3681.94212124,0.00039554,7]
[311241137,1704990648347,-631.05944272,0.00039554,3]
[311241140,1704990648359,-452.7305084,0.00039554,3]
[311241142,1704990648374,-1050.21625214,0.0003957,2]
[311241161,1704990648570,-10982.04796045,0.00039579,2]
[311241163,1704990648582,-5800.0,0.0003958,2]
[311241165,1704990648600,-150.0,0.00039581,2]
[311241167,1704990648611,-150.0,0.00039581,2]
[311241169,1704990648621,-150.0,0.00039581,2]
[311241171,1704990648631,-150.0,0.00039581,2]
[311241173,1704990648641,-151.0,0.00039582,7]
[311241175,1704990648651,-151.0,0.00039582,7]
[311241177,1704990648661,-151.0,0.00039582,7]
[311241179,1704990648672,-151.0,0.00039582,7]
[311241181,1704990648682,-151.0,0.00039582,7]
[311241183,1704990648693,-151.0,0.00039582,7]
[311241185,1704990648703,-151.0,0.00039582,7]
[311241187,1704990648714,-151.0,0.00039582,7]
[311241189,1704990648725,-151.0,0.00039582,7]
[311241191,1704990648736,-259.999034,0.00039582,7]
[311241193,1704990648746,-151.0,0.00039582,7]
[311241195,1704990648756,-236.58314,0.00039582,7]
[311241197,1704990648767,-285.335121,0.00039582,2]
[311241200,1704990648778,-180.424921,0.00039582,2]
[311241201,1704990648788,-1546.38044,0.00039582,2]
[311241203,1704990648798,-1062.973258,0.00039582,2]
[311241205,1704990648808,-531.48663,0.00039582,2]
[311241208,1704990648818,-773.19022,0.00039582,2]
[311241210,1704990648828,-179.629477,0.00039582,2]
[311241212,1704990648842,-1062.973258,0.00039582,2]
[311241213,1704990648851,-1546.380441,0.00039582,2]
[311241216,1704990648861,-855.576108,0.00039582,2]
[311241218,1704990648870,-162.335388,0.00039582,2]
[311241219,1704990648880,-2310.21,0.000396,7]
[311241221,1704990648889,-3410.01,0.000396,7]
[311241223,1704990648899,-3678.92,0.0003963,2]
[311241225,1704990648908,-242.09863262,0.00039643,7]
[311241227,1704990648918,-205.0,0.00039683,2]
[311241230,1704990648928,-637.0,0.000397,2]
[311241232,1704990648937,-1461.0,0.000397,2]
[311241234,1704990648947,-600.0,0.000397,2]
[311241236,1704990648956,-1617.0,0.000397,2]
[311241238,1704990648965,-428.32142152,0.000397,2]
[311241240,1704990648976,-2013.21858316,0.000397,2]
[311241242,1704990648985,-1184.86695474,0.000397,2]
[311241244,1704990648994,-777.74322626,0.000397,2]
[311241246,1704990649004,-1428.15655105,0.000397,2]
[311241248,1704990649014,-150.0,0.0003971,120]
[311241250,1704990649023,-200.0,0.00039736,15]
[311241252,1704990649033,-156.76141992,0.00039782,7]
[311241253,1704990649043,-150.0,0.00039799,2]
[311241256,1704990649053,-150.0,0.00039799,2]
[311241258,1704990649063,-1380.80198442,0.000398,2]
[311241260,1704990649073,-151.0,0.000398,7]
[311241262,1704990649082,-726.906667,0.000398,7]
[311241264,1704990649097,-726.906667,0.000398,7]
[311241266,1704990649106,-151.0,0.000398,7]
[311241268,1704990649116,-915.22154,0.000398,7]
[311241270,1704990649125,-915.22154,0.000398,7]
[311241272,1704990649137,-2185058.60690832,0.000398,3]
[311241274,1704990649146,-428.28052565,0.000398,4]
[311241276,1704990649156,-72883.95677904,0.000398,2]
[311241278,1704990649165,-3299.94,0.000398,7]
[311241280,1704990649175,-5800.0,0.00039823,2]
[311241282,1704990649184,-5800.0,0.00039831,2]
[311241284,1704990649194,-5800.0,0.0003984,2]
[311241286,1704990649203,-5800.0,0.00039848,2]
[311241288,1704990649213,-5800.0,0.00039857,2]
[311241290,1704990649223,-5800.0,0.00039865,2]
[311241292,1704990649233,-151.0,0.00039899,7]
[311241294,1704990649242,-151.0,0.00039899,7]
[311241296,1704990649252,-151.0,0.00039899,7]
[311241298,1704990649261,-990.0,0.00039899,30]
[311241300,1704990649271,-990.0,0.00039899,30]
[311241302,1704990649280,-990.0,0.00039899,30]
[311241304,1704990649290,-990.0,0.00039899,30]
[311241306,1704990649299,-990.0,0.00039899,30]
[311241308,1704990649308,-990.0,0.00039899,30]
[311241310,1704990649320,-990.0,0.00039899,30]
[311241312,1704990649330,-990.0,0.00039899,30]
[311241314,1704990649342,-990.0,0.00039899,30]
[311241316,1704990649352,-990.0,0.00039899,30]
[311241318,1704990649362,-990.0,0.00039899,30]
[311241320,1704990649371,-990.0,0.00039899,30]
[311241322,1704990649381,-990.0,0.00039899,30]
[311241325,1704990649391,-990.0,0.00039899,30]
[311241327,1704990649400,-990.0,0.00039899,30]
[311241328,1704990649409,-990.0,0.00039899,30]
[311241330,1704990649419,-990.0,0.00039899,30]
[311241332,1704990649428,-990.0,0.00039899,30]
[311241334,1704990649437,-990.0,0.00039899,30]
[311241336,1704990649446,-990.0,0.00039899,30]
[311241338,1704990649456,-990.0,0.00039899,30]
[311241340,1704990649465,-990.0,0.00039899,30]
[311241342,1704990649474,-990.0,0.00039899,30]
[311241344,1704990649484,-990.0,0.00039899,30]
[311241347,1704990649493,-990.0,0.00039899,30]
[311241349,1704990649502,-990.0,0.00039899,30]
[311241351,1704990649512,-990.0,0.00039899,30]
[311241352,1704990649520,-990.0,0.00039899,30]
[311241353,1704990649529,-990.0,0.00039899,30]
[311241354,1704990649538,-990.0,0.00039899,30]
[311241355,1704990649547,-990.0,0.00039899,30]
[311241356,1704990649556,-990.0,0.00039899,30]
[311241357,1704990649566,-990.0,0.00039899,30]
[311241358,1704990649575,-990.0,0.00039899,30]
[311241359,1704990649584,-990.0,0.00039899,30]
[311241360,1704990649595,-990.0,0.00039899,30]
[311241362,1704990649604,-990.0,0.00039899,30]
[311241364,1704990649613,-990.0,0.00039899,30]
[311241366,1704990649623,-990.0,0.00039899,30]
[311241368,1704990649632,-990.0,0.00039899,30]
[311241370,1704990649642,-990.0,0.00039899,30]
[311241372,1704990649651,-990.0,0.00039899,30]
[311241374,1704990649661,-990.0,0.00039899,30]
[311241376,1704990649671,-151.0,0.000399,7]
[311241379,1704990649682,-41002.49175725,0.000399,7]
[311241380,1704990649692,-500.0,0.000399,14]
[311241383,1704990649703,-1014.67766403,0.00039941,15]
[311241385,1704990649713,-200.0,0.00039942,15]
[311241387,1704990649724,-294.17802863,0.00039943,15]
[311241389,1704990649735,-1014.67766403,0.00039944,15]
[311241390,1704990649745,-15758.46076016,0.00039945,15]
[311241392,1704990649757,-15758.46076016,0.00039947,15]
[311241395,1704990649768,-15758.46076016,0.00039948,15]
[311241396,1704990649779,-1775.68591213,0.00039954,10]
[311241398,1704990649789,-27577.30633036,0.00039957,10]
[311241401,1704990649800,-2907.49919853,0.00039959,10]
[311241403,1704990649811,-17696.69822075,0.0003996,15]
[311241405,1704990649821,-27577.30633036,0.00039961,10]
[311241407,1704990649831,-514.81155017,0.00039961,10]
[311241409,1704990649846,-1661.4281134,0.00039963,15]
[311241411,1704990649856,-1661.4281134,0.00039964,15]
[311241413,1704990649866,-514.81155017,0.00039965,10]
[311241415,1704990649876,-30969.22188639,0.00039965,10]
[311241417,1704990649885,-2907.49919853,0.00039965,10]
[311241419,1704990649895,-17696.69822075,0.00039966,15]
[311241421,1704990649905,-2907.49919853,0.00039968,10]
[311241423,1704990649914,-294.17802863,0.0003997,15]
[311241425,1704990649924,-30969.22188639,0.00039971,10]
[311241427,1704990649933,-1014.67766403,0.00039971,15]
[311241429,1704990649942,-27577.30633036,0.00039973,10]
[311241431,1704990649952,-17696.69822075,0.00039975,15]
[311241433,1704990649961,-294.17802863,0.00039975,15]
[311241435,1704990649970,-200.0,0.00039975,15]
[311241437,1704990649980,-1775.68591213,0.00039976,10]
[311241438,1704990649990,-329.32629277,0.00039977,10]
[311241440,1704990649999,-1661.4281134,0.00039979,15]
[311241443,1704990650009,-464.91147385,0.0003998,3]
[311241445,1704990650019,-291.36136514,0.0003998,3]
[311241447,1704990650030,-183.81335898,0.0003998,3]
[311241449,1704990650040,-264.69549364,0.0003998,3]
[311241450,1704990650050,-157.5,0.0003998,3]
[311241453,1704990650061,-157.5,0.0003998,3]
[311241454,1704990650071,-30969.22188639,0.00039982,10]
[311241457,1704990650081,-514.81155017,0.00039983,10]
[311241459,1704990650096,-329.32629277,0.00039984,10]
[311241461,1704990650106,-2907.49919853,0.00039984,10]
[311241463,1704990650117,-1775.68591213,0.00039984,10]
[311241465,1704990650127,-30969.22188639,0.00039984,10]
[311241467,1704990650137,-514.81155017,0.00039985,10]
[311241469,1704990650147,-329.32629277,0.00039986,10]
[311241471,1704990650156,-200.0,0.00039987,6]
[311241473,1704990650165,-329.32629277,0.00039987,10]
[311241474,1704990650175,-1775.68591213,0.00039989,10]
[311241476,1704990650184,-27577.30633036,0.0003999,10]
[311241479,1704990650195,-56273.94275859,0.0004,10]
[311241505,1704990650459,-43726.05724141,0.0004,10]
[311241507,1704990650470,-223.65882795,0.0004,4]
[311241509,1704990650480,-14544.97155418,0.0004,4]
[311241515,1704990650528,-1361.455527,0.00039582,7]
[311241517,1704990650539,-39672.6474164,0.0004,4]
[311241519,1704990650549,-659.96111596,0.0004,10]
[311241521,1704990650559,-966.48279954,0.0004,4]
[311241523,1704990650569,-155.0,0.0004,2]
[311241526,1704990650579,-4202.9831575,0.0004,15]
[311241528,1704990650594,-1778.24259472,0.0004,15]
[311241530,1704990650607,-46100.0,0.0004,15]
[311241558,1704990650901,-2425.77258774,0.0004,15]
[311241560,1704990650913,-72724.54486472,0.0004,15]
[311241562,1704990650923,-956.60549549,0.0004,2]
[311241564,1704990650934,-9879.77862433,0.0004,2]
[311241566,1704990650946,-2389.707,0.0004,2]
[311241569,1704990650959,-920.88,0.0004,2]
[311241571,1704990650971,-518.8,0.0004,2]
[311241574,1704990650988,-357.66755711,0.0004,2]
[311241576,1704990651009,-30859.38047408,0.0004,2]
[311241577,1704990651041,-10306.470216,0.0004,2]
[311241579,1704990651052,-18761.41430294,0.0004,10]
[311241581,1704990651063,-4645.86595713,0.0004,4]
[311241590,1704990651151,-17362.20617797,0.0004,4]
[311241592,1704990651162,-18767.49045081,0.0004,2]
[311241594,1704990651172,-161.0377925,0.0004,30]
[311241596,1704990651183,-3896.86094117,0.0004,2]
[311241598,1704990651194,-4075.64826899,0.0004,4]
[311241600,1704990651204,-806.09957877,0.0004,2]
[311241602,1704990651214,-959.72340044,0.0004,2]
[311241604,1704990651228,-1098.39846647,0.0004,2]
[311241608,1704990651262,-10113.44654317,0.0004,2]
[311241610,1704990651273,-4338.64299801,0.0004,2]
[311241613,1704990651286,-1489.95371135,0.0004,2]
[311241615,1704990651296,-213.0,0.0004,30]
[311241617,1704990651306,-3950.40628861,0.0004,120]
[311241619,1704990651322,-13006.47525199,0.0004,120]
[311241621,1704990651333,-350.0,0.0004,120]
[311241623,1704990651349,-400.0,0.0004,120]
[311241625,1704990651358,-1000.0,0.0004,10]
[311241627,1704990651369,-1000.0,0.0004,10]
[311241629,1704990651380,-226.0,0.0004,10]
[311241630,1704990651391,-255.0,0.0004,12]
[311241631,1704990651401,-1005.0,0.0004,2]
[311241632,1704990651411,-5000.0,0.0004,30]
[311241633,1704990651421,-2069.0,0.0004,2]
[311241634,1704990651431,-5085.0,0.0004,2]
[311241635,1704990651441,-210.38937704,0.0004,2]
[311241636,1704990651451,-555.46,0.0004,3]
[311241637,1704990651459,-489.697059,0.0004,14]
[311241638,1704990651467,-166.93122887,0.00040056,30]
[311241640,1704990651478,-285.335121,0.00040077,2]
[311241642,1704990651488,-1546.38044,0.00040077,2]
[311241644,1704990651498,-1062.973258,0.00040077,2]
[311241646,1704990651507,-531.48663,0.00040077,2]
[311241648,1704990651517,-773.19022,0.00040077,2]
[311241650,1704990651529,-1062.973258,0.00040077,2]
[311241653,1704990651540,-1546.380441,0.00040077,2]
[311241654,1704990651551,-855.576108,0.00040077,2]
[311241656,1704990651561,-1002.06543032,0.00040088,2]
[311241658,1704990651572,-153.84,0.00040183,2]
[311241660,1704990651582,-2310.21,0.000402,7]
[311241662,1704990651597,-3410.01,0.000402,7]
[311241664,1704990651607,-153.0,0.000402,7]
[311241667,1704990651619,-700.44433677,0.000402,7]
[311241670,1704990651642,-410.52035513,0.000402,7]
[311241684,1704990651779,-207.49696392,0.00033364,2]
[311241686,1704990651790,-2200.87,0.00035585,10]
[311241688,1704990651800,-2188.9753081,0.000402,7]
[311241690,1704990651811,-484.58,0.000402,4]
[311241692,1704990651821,-484.58,0.000402,4]
[311241694,1704990651832,-484.58,0.000402,4]
[311241696,1704990651846,-484.58,0.000402,4]
[311241698,1704990651856,-484.58,0.000402,4]
[311241699,1704990651866,-484.58,0.000402,4]
[311241701,1704990651877,-484.58,0.000402,4]
[311241704,1704990651889,-484.58,0.000402,4]
[311241705,1704990651899,-484.58,0.000402,4]
[311241708,1704990651909,-484.58,0.000402,4]
[311241709,1704990651920,-484.58,0.000402,4]
[311241712,1704990651930,-484.58,0.000402,4]
[311241714,1704990651941,-484.58,0.000402,4]
[311241716,1704990651951,-484.58,0.000402,4]
[311241718,1704990651964,-484.58,0.000402,4]
[311241720,1704990651974,-484.58,0.000402,4]
[311241722,1704990651984,-484.58,0.000402,4]
[311241724,1704990651993,-484.58,0.000402,4]
[311241726,1704990652002,-484.58,0.000402,4]
[311241728,1704990652012,-484.58,0.000402,4]
[311241729,1704990652022,-180.424921,0.00040242,2]
[311241732,1704990652032,-150.0,0.00040294,3]
[311241733,1704990652041,-150.0,0.00040294,3]
[311241735,1704990652052,-567.0,0.000403,2]
[311241737,1704990652062,-1058.8,0.00040349,15]
[311241739,1704990652072,-3770.63399026,0.00040417,14]
[311241742,1704990652097,-6537.44418151,0.00040417,14]
[311241744,1704990652107,-242.09863262,0.00040438,30]
[311241746,1704990652118,-6560.99503908,0.000405,7]
[311241749,1704990652128,-63310.03507136,0.000405,2]
[311241750,1704990652138,-38208.73688342,0.000405,2]
[311241752,1704990652148,-285.335121,0.00040572,2]
[311241754,1704990652157,-1546.38044,0.00040572,2]
[311241756,1704990652167,-1062.973258,0.00040572,2]
[311241759,1704990652177,-531.48663,0.00040572,2]
[311241761,1704990652188,-773.19022,0.00040572,2]
[311241763,1704990652197,-1062.973258,0.00040572,2]
[311241764,1704990652208,-1546.380441,0.00040572,2]
[311241766,1704990652218,-855.576108,0.00040572,2]
[311241769,1704990652228,-164.30442535,0.00040579,30]
[311241771,1704990652239,-152.34858058,0.00040585,8]
[311241773,1704990652248,-1023.52660709,0.00040585,9]
[311241774,1704990652259,-3299.94,0.000406,7]
[311241777,1704990652269,-1914.34594677,0.00040605,32]
[311241778,1704990652280,-4899.52684213,0.00040673,2]
[311241780,1704990652290,-2845.74773785,0.00040673,2]
[311241782,1704990652301,-9664.80870378,0.00040673,2]
[311241783,1704990652310,-2156.55982993,0.00040685,5]
[311241785,1704990652321,-539.84020963,0.0004069,4]
[311241787,1704990652333,-6679.0,0.000407,3]
[311241788,1704990652347,-168.64593695,0.00040705,30]
[311241790,1704990652358,-247.6,0.00040733,2]
[311241792,1704990652370,-150.0,0.00040789,3]
[311241793,1704990652380,-150.0,0.00040789,3]
[311241795,1704990652390,-500.0,0.00040798,4]
[311241797,1704990652401,-2310.21,0.000408,7]
[311241798,1704990652414,-3410.01,0.000408,7]
[311241800,1704990652425,-500.0,0.00040807,4]
[311241802,1704990652435,-500.0,0.00040816,4]
[311241803,1704990652445,-500.0,0.00040825,4]
[311241805,1704990652455,-105559.6173755,0.000409,7]
[311241807,1704990652466,-33563.7788404,0.000409,7]
[311241809,1704990652476,-3000.0,0.000409,27]
[311241810,1704990652489,-180.424921,0.00040902,2]
[311241812,1704990652501,-3000.0,0.0004091,27]
[311241814,1704990652512,-3000.0,0.0004092,27]
[311241816,1704990652523,-5888.443813,0.0004093,27]
[311241817,1704990652533,-194.62263337,0.00040973,30]
[311241819,1704990652544,-400.0,0.00040986,120]
[311241821,1704990652555,-500.0,0.00040987,20]
[311241822,1704990652565,-200.0,0.00040987,11]
[311241824,1704990652575,-242.09863262,0.00040995,30]
[311241826,1704990652585,-151.0,0.00040995,2]
[311241828,1704990652599,-100000.0,0.00041,11]
[311241829,1704990652610,-4888.61680617,0.00041,3]
[311241831,1704990652621,-3633.97,0.00041,30]
[311241833,1704990652632,-60027.57527501,0.00041,4]
[311241835,1704990652642,-3299.94,0.00041,7]
[311241836,1704990652652,-1000.0,0.00041,120]
[311241838,1704990652662,-30453.95202294,0.00041,2]
[311241840,1704990652675,-514.98650794,0.00041,2]
[311241842,1704990652688,-5944.31930243,0.00041,2]
[311241844,1704990652702,-6127.37084644,0.00041,2]
[311241845,1704990652715,-349.38442754,0.00041,2]
[311241846,1704990652729,-715.2529441,0.00041,2]
[311241847,1704990652743,-646.578576,0.00041,2]
[311241848,1704990652769,-7494.47272,0.00041,2]
[311241849,1704990652806,-0.46539543,0.00041,2]
[311241850,1704990652820,-1854.61268748,0.00041,2]
[311241851,1704990652832,-2094.48443044,0.00041,2]
[311241852,1704990652850,-4966.03420804,0.00041,2]